[Event "*** Titled Tuesday Blitz"]
[Site "Chess.com"]
[Date "2020.12.29"]
[Round "4"]
[White "Sueetin"]
[Black "MillyNeuf"]
[Result "1-0"]
[WhiteElo "2497"]
[BlackElo "2328"]
[TimeControl "180+1"]
[EndTime "10:38:25 PST"]
[Termination "Sueetin won by resignation"]

1. e4 {[%clk 0:03:00.9]} 1... c5 {[%clk 0:03:00.1]} 2. Nf3 {[%clk 0:03:01.1]}
2... d6 {[%clk 0:03:00.3]} 3. d4 {[%clk 0:03:01.5]} 3... cxd4 {[%clk 0:03:01.2]}
4. Nxd4 {[%clk 0:03:02.3]} 4... Nf6 {[%clk 0:03:00.8]} 5. Nc3 {[%clk 0:03:02.9]}
5... g6 {[%clk 0:03:00.9]} 6. Be3 {[%clk 0:03:01.8]} 6... Bg7 {[%clk 0:03:01.4]}
7. f3 {[%clk 0:02:59.6]} 7... O-O {[%clk 0:03:01.8]} 8. Bc4 {[%clk 0:02:59.6]}
8... Nc6 {[%clk 0:03:01.8]} 9. Qd2 {[%clk 0:02:59.8]} 9... Bd7 {[%clk
0:03:02.4]} 10. O-O-O {[%clk 0:02:59.9]} 10... Rc8 {[%clk 0:03:02.9]} 11. Bb3
{[%clk 0:02:59.5]} 11... Nxd4 {[%clk 0:03:03.5]} 12. Bxd4 {[%clk 0:02:59.6]}
12... b5 {[%clk 0:03:04.1]} 13. Kb1 {[%clk 0:02:49.5]} 13... a5 {[%clk
0:03:03.7]} 14. a3 {[%clk 0:02:49.5]} 14... b4 {[%clk 0:03:01.6]} 15. axb4
{[%clk 0:02:47.9]} 15... axb4 {[%clk 0:03:02.5]} 16. Na2 {[%clk 0:02:41.8]}
16... Qa5 {[%clk 0:02:42.3]} 17. Qxb4 {[%clk 0:02:36.1]} 17... Qa6 {[%clk
0:02:41]} 18. Nc3 {[%clk 0:02:27.7]} 18... Rb8 {[%clk 0:02:38.5]} 19. Qc4 {[%clk
0:02:19]} 19... Qa5 {[%clk 0:02:29.3]} 20. Rhe1 {[%clk 0:02:00]} 20... Rfc8
{[%clk 0:02:25.9]} 21. Qxf7+ {[%clk 0:01:59.7]} 21... Kh8 {[%clk 0:02:22.3]} 22.
e5 {[%clk 0:01:56.6]} 22... Ra8 {[%clk 0:02:19.3]} 23. Na2 {[%clk 0:01:42]}
23... dxe5 {[%clk 0:02:06.3]} 24. Rxe5 {[%clk 0:01:36.2]} 24... Qa6 {[%clk
0:01:01.4]} 25. Rxe7 {[%clk 0:01:33.7]} 25... Rg8 {[%clk 0:00:42]} 26. Bxf6
{[%clk 0:01:29.4]} 26... Qxf6 {[%clk 0:00:38.4]} 27. Qxf6 {[%clk 0:01:29.6]}
27... Bxf6 {[%clk 0:00:38.1]} 28. Bxg8 {[%clk 0:01:16.6]} 28... Bxe7 {[%clk
0:00:22]} 29. Rxd7 {[%clk 0:01:15]} 29... Kxg8 {[%clk 0:00:21]} 30. Rxe7 {[%clk
0:01:14.3]} 30... h5 {[%clk 0:00:21.9]} 31. Nc3 {[%clk 0:01:12.6]} 31... g5
{[%clk 0:00:22.8]} 32. Ne4 {[%clk 0:01:12]} 32... h4 {[%clk 0:00:23.7]} 33. Nxg5
{[%clk 0:01:11.3]} 33... h3 {[%clk 0:00:22.9]} 34. Nxh3 {[%clk 0:01:11.1]} 34...
Kh8 {[%clk 0:00:21.9]} 35. Ng5 {[%clk 0:01:10.4]} 35... Kg8 {[%clk 0:00:22.1]}
36. Ne4 {[%clk 0:01:08.4]} 36... Kh8 {[%clk 0:00:22]} 37. b4 {[%clk 0:01:06.3]}
37... Kg8 {[%clk 0:00:21.6]} 38. Kb2 {[%clk 0:01:06.2]} 38... Kh8 {[%clk
0:00:21.7]} 39. Kb3 {[%clk 0:01:06.5]} 39... Kg8 {[%clk 0:00:22.1]} 40. c4
{[%clk 0:01:06.5]} 40... Kh8 {[%clk 0:00:22.7]} 41. b5 {[%clk 0:01:06.5]} 41...
Kg8 {[%clk 0:00:23.6]} 42. b6 {[%clk 0:01:06.5]} 42... Kh8 {[%clk 0:00:24.5]}
43. c5 {[%clk 0:01:06.5]} 43... Kg8 {[%clk 0:00:24.4]} 44. c6 {[%clk 0:01:06.7]}
44... Kh8 {[%clk 0:00:24.2]} 45. b7 {[%clk 0:01:00.9]} 45... Rb8 {[%clk
0:00:23.8]} 46. Rc7 {[%clk 0:00:57.8]} 1-0

[Event "*** Titled Tuesday Blitz"]
[Site "Chess.com"]
[Date "2020.12.29"]
[Round "4"]
[White "Andrakhanova"]
[Black "akanga001"]
[Result "1-0"]
[WhiteElo "2242"]
[BlackElo "1940"]
[TimeControl "180+1"]
[EndTime "10:38:25 PST"]
[Termination "Andrakhanova won on time"]

1. c4 {[%clk 0:03:00.9]} 1... b6 {[%clk 0:02:58.2]} 2. Nc3 {[%clk 0:02:59.7]}
2... Bb7 {[%clk 0:02:57.1]} 3. d4 {[%clk 0:02:58.9]} 3... d6 {[%clk 0:02:55.7]}
4. Nf3 {[%clk 0:02:58]} 4... Nd7 {[%clk 0:02:56.1]} 5. g3 {[%clk 0:02:56.9]}
5... e5 {[%clk 0:02:56.5]} 6. dxe5 {[%clk 0:02:53.7]} 6... dxe5 {[%clk
0:02:55.2]} 7. Bg2 {[%clk 0:02:52.1]} 7... Ngf6 {[%clk 0:02:54.5]} 8. O-O {[%clk
0:02:50.4]} 8... Be7 {[%clk 0:02:48.4]} 9. b3 {[%clk 0:02:45.6]} 9... O-O {[%clk
0:02:47.5]} 10. Bb2 {[%clk 0:02:45.3]} 10... Re8 {[%clk 0:02:46.9]} 11. Qc2
{[%clk 0:02:40.6]} 11... Bf8 {[%clk 0:02:41.2]} 12. Rad1 {[%clk 0:01:25.6]}
12... Qb8 {[%clk 0:02:34.3]} 13. Nd5 {[%clk 0:01:23.9]} 13... Nxd5 {[%clk
0:02:13.5]} 14. cxd5 {[%clk 0:01:24.8]} 14... Bd6 {[%clk 0:02:13.1]} 15. Ng5
{[%clk 0:01:22.4]} 15... g6 {[%clk 0:02:10.6]} 16. h4 {[%clk 0:01:20.2]} 16...
Qd8 {[%clk 0:02:02.6]} 17. f4 {[%clk 0:01:12.5]} 17... exf4 {[%clk 0:01:11.3]}
18. gxf4 {[%clk 0:01:13.4]} 18... Qe7 {[%clk 0:01:02.7]} 19. e4 {[%clk
0:00:49.6]} 19... h6 {[%clk 0:00:59.8]} 20. Nf3 {[%clk 0:00:49.2]} 20... Bxf4
{[%clk 0:00:55.4]} 21. h5 {[%clk 0:00:44]} 21... Be3+ {[%clk 0:00:51]} 22. Kh1
{[%clk 0:00:41.7]} 22... Bf4 {[%clk 0:00:20.2]} 23. hxg6 {[%clk 0:00:39.6]}
23... fxg6 {[%clk 0:00:19.7]} 24. e5 {[%clk 0:00:40]} 24... Kh7 {[%clk
0:00:09.2]} 25. e6 {[%clk 0:00:39.4]} 25... Nf6 {[%clk 0:00:07.8]} 26. Nh4
{[%clk 0:00:28.3]} 1-0

[Event "*** Titled Tuesday Blitz"]
[Site "Chess.com"]
[Date "2020.12.29"]
[Round "4"]
[White "VerdeNotte"]
[Black "tjychess"]
[Result "1-0"]
[WhiteElo "2897"]
[BlackElo "2729"]
[TimeControl "180+1"]
[EndTime "10:38:27 PST"]
[Termination "VerdeNotte won by resignation"]

1. Nf3 {[%clk 0:03:00.9]} 1... d5 {[%clk 0:03:00.2]} 2. b3 {[%clk 0:03:00.4]}
2... Nf6 {[%clk 0:03:00.4]} 3. Bb2 {[%clk 0:03:00.5]} 3... c6 {[%clk 0:03:00.9]}
4. g3 {[%clk 0:03:00.8]} 4... Bf5 {[%clk 0:03:01.1]} 5. Bg2 {[%clk 0:03:01.1]}
5... Nbd7 {[%clk 0:03:01.7]} 6. d3 {[%clk 0:03:00.6]} 6... Qc7 {[%clk
0:02:58.6]} 7. c4 {[%clk 0:02:57.3]} 7... e6 {[%clk 0:02:53.5]} 8. O-O {[%clk
0:02:57.1]} 8... Be7 {[%clk 0:02:52.2]} 9. Nc3 {[%clk 0:02:55.4]} 9... O-O
{[%clk 0:02:52.1]} 10. Rc1 {[%clk 0:02:53.6]} 10... h6 {[%clk 0:02:52.2]} 11.
cxd5 {[%clk 0:02:49]} 11... exd5 {[%clk 0:02:53.1]} 12. Nd4 {[%clk 0:02:44.3]}
12... Bg6 {[%clk 0:01:57.6]} 13. e4 {[%clk 0:02:22.7]} 13... dxe4 {[%clk
0:01:53.1]} 14. dxe4 {[%clk 0:02:22.9]} 14... Rad8 {[%clk 0:01:50.7]} 15. Nd5
{[%clk 0:02:16.1]} 15... Nxd5 {[%clk 0:01:36.2]} 16. exd5 {[%clk 0:02:16.2]}
16... Ne5 {[%clk 0:01:07.6]} 17. dxc6 {[%clk 0:02:12.4]} 17... bxc6 {[%clk
0:00:59.1]} 18. Qd2 {[%clk 0:01:25.9]} 18... c5 {[%clk 0:00:51.1]} 19. Qc3
{[%clk 0:01:12.2]} 19... Nd3 {[%clk 0:00:44.7]} 20. Ne6 {[%clk 0:00:59.7]} 20...
Bf6 {[%clk 0:00:26.1]} 21. Nxc7 {[%clk 0:00:57.3]} 21... Bxc3 {[%clk 0:00:25.9]}
22. Bxc3 {[%clk 0:00:52.6]} 22... Nxc1 {[%clk 0:00:26.1]} 23. Rxc1 {[%clk
0:00:53.3]} 23... Rd7 {[%clk 0:00:25.5]} 24. Nd5 {[%clk 0:00:50.3]} 24... Rfd8
{[%clk 0:00:25.1]} 25. Ne3 {[%clk 0:00:49.8]} 25... Bd3 {[%clk 0:00:17.7]} 26.
Ba5 {[%clk 0:00:49.6]} 26... Rb8 {[%clk 0:00:12]} 27. Rxc5 {[%clk 0:00:49.1]}
27... Ba6 {[%clk 0:00:11.6]} 28. Nd5 {[%clk 0:00:46.9]} 28... Bb7 {[%clk
0:00:08.5]} 29. h4 {[%clk 0:00:40.6]} 29... Re8 {[%clk 0:00:06.4]} 30. Nc7
{[%clk 0:00:37.9]} 30... Rb8 {[%clk 0:00:04.3]} 31. Rb5 {[%clk 0:00:36.9]} 31...
a6 {[%clk 0:00:01.5]} 32. Rxb7 {[%clk 0:00:36.3]} 1-0

[Event "*** Titled Tuesday Blitz"]
[Site "Chess.com"]
[Date "2020.12.29"]
[Round "4"]
[White "IMAghasiyevKamal"]
[Black "NMShanMeruga"]
[Result "0-1"]
[WhiteElo "2600"]
[BlackElo "2425"]
[TimeControl "180+1"]
[EndTime "10:38:28 PST"]
[Termination "NMShanMeruga won by resignation"]

1. d4 {[%clk 0:03:00.9]} 1... c6 {[%clk 0:03:00.9]} 2. c4 {[%clk 0:02:59.4]}
2... g6 {[%clk 0:02:58.9]} 3. Nc3 {[%clk 0:02:55.9]} 3... Bg7 {[%clk 0:02:57.5]}
4. e4 {[%clk 0:02:54.9]} 4... d6 {[%clk 0:02:53.9]} 5. Be3 {[%clk 0:02:50.5]}
5... Nf6 {[%clk 0:02:50.4]} 6. Be2 {[%clk 0:02:46.8]} 6... O-O {[%clk
0:02:48.6]} 7. h3 {[%clk 0:02:42.1]} 7... Nbd7 {[%clk 0:02:44.8]} 8. Nf3 {[%clk
0:02:37.5]} 8... e5 {[%clk 0:02:43]} 9. d5 {[%clk 0:02:34]} 9... cxd5 {[%clk
0:02:34.7]} 10. cxd5 {[%clk 0:02:33.8]} 10... Nh5 {[%clk 0:02:35.2]} 11. g3
{[%clk 0:02:29.3]} 11... f5 {[%clk 0:02:26]} 12. exf5 {[%clk 0:02:16.2]} 12...
gxf5 {[%clk 0:02:24.4]} 13. Ng5 {[%clk 0:02:16.2]} 13... Nhf6 {[%clk 0:02:07.8]}
14. Ne6 {[%clk 0:02:15.6]} 14... Qe7 {[%clk 0:02:08.4]} 15. Nxf8 {[%clk
0:02:10.6]} 15... Nxf8 {[%clk 0:02:09.3]} 16. Qb3 {[%clk 0:01:55.6]} 16... Ng6
{[%clk 0:02:06.1]} 17. Rc1 {[%clk 0:01:46.3]} 17... f4 {[%clk 0:02:02.1]} 18.
Bd2 {[%clk 0:01:45.7]} 18... Bf5 {[%clk 0:01:58.8]} 19. g4 {[%clk 0:01:40.5]}
19... Bd7 {[%clk 0:01:56.7]} 20. g5 {[%clk 0:01:34.4]} 20... Ne8 {[%clk
0:01:53.3]} 21. Ne4 {[%clk 0:01:28]} 21... Bf5 {[%clk 0:01:49.4]} 22. Bd3 {[%clk
0:01:21]} 22... Nh4 {[%clk 0:01:46.1]} 23. Bb4 {[%clk 0:01:12.2]} 23... a5
{[%clk 0:01:28.2]} 24. Ba3 {[%clk 0:01:06.6]} 24... Nf3+ {[%clk 0:01:21.9]} 25.
Kd1 {[%clk 0:01:01.6]} 25... Nd4 {[%clk 0:01:19.3]} 26. Qc3 {[%clk 0:00:37.7]}
26... b5 {[%clk 0:01:03.4]} 27. b4 {[%clk 0:00:20.7]} 27... axb4 {[%clk
0:00:59.2]} 28. Bxb4 {[%clk 0:00:21]} 28... Rxa2 {[%clk 0:00:54.2]} 29. Rg1
{[%clk 0:00:20.5]} 29... Qa7 {[%clk 0:00:47.4]} 30. Nf6+ {[%clk 0:00:19.5]}
30... Bxf6 {[%clk 0:00:41.7]} 31. gxf6+ {[%clk 0:00:19.4]} 31... Kf7 {[%clk
0:00:42.4]} 32. Bxf5 {[%clk 0:00:18.3]} 32... Nxf5 {[%clk 0:00:40.1]} 33. Qb3
{[%clk 0:00:10.2]} 0-1

[Event "*** Titled Tuesday Blitz"]
[Site "Chess.com"]
[Date "2020.12.29"]
[Round "4"]
[White "Saylormoon"]
[Black "zajka-molotok"]
[Result "1-0"]
[WhiteElo "2362"]
[BlackElo "2491"]
[TimeControl "180+1"]
[EndTime "10:38:29 PST"]
[Termination "Saylormoon won by checkmate"]

1. e4 {[%clk 0:03:00.9]} 1... c6 {[%clk 0:02:59.5]} 2. Nc3 {[%clk 0:02:59.6]}
2... d5 {[%clk 0:02:59.4]} 3. Nf3 {[%clk 0:03:00.2]} 3... g6 {[%clk 0:02:44.6]}
4. d4 {[%clk 0:02:50.2]} 4... Bg7 {[%clk 0:02:39.8]} 5. exd5 {[%clk 0:02:49.9]}
5... cxd5 {[%clk 0:02:40.7]} 6. h3 {[%clk 0:02:49.3]} 6... Nc6 {[%clk
0:02:39.5]} 7. a3 {[%clk 0:02:44.5]} 7... Nf6 {[%clk 0:02:38.4]} 8. Bd3 {[%clk
0:02:44.5]} 8... Bf5 {[%clk 0:02:32]} 9. O-O {[%clk 0:02:43.5]} 9... Ne4 {[%clk
0:02:26.2]} 10. Bf4 {[%clk 0:02:34]} 10... O-O {[%clk 0:02:17.8]} 11. Re1 {[%clk
0:02:11.5]} 11... Nxd4 {[%clk 0:02:00.2]} 12. Nxe4 {[%clk 0:01:44]} 12... dxe4
{[%clk 0:01:38.2]} 13. Bxe4 {[%clk 0:01:40.4]} 13... Bxe4 {[%clk 0:01:34.7]} 14.
Rxe4 {[%clk 0:01:37.3]} 14... Nxf3+ {[%clk 0:01:21.7]} 15. Qxf3 {[%clk
0:01:37.1]} 15... Rc8 {[%clk 0:01:09.2]} 16. c3 {[%clk 0:01:34.4]} 16... e6
{[%clk 0:01:08.6]} 17. Rd1 {[%clk 0:01:32.4]} 17... Qb6 {[%clk 0:01:05.7]} 18.
Rb4 {[%clk 0:01:31.5]} 18... Qc6 {[%clk 0:00:50.6]} 19. Rxb7 {[%clk 0:01:28]}
19... Qxf3 {[%clk 0:00:48.6]} 20. gxf3 {[%clk 0:01:28.1]} 20... e5 {[%clk
0:00:44.5]} 21. Be3 {[%clk 0:01:25.9]} 21... a6 {[%clk 0:00:44.1]} 22. Rdd7
{[%clk 0:01:24]} 22... Rc6 {[%clk 0:00:40.1]} 23. a4 {[%clk 0:01:17.6]} 23...
Rf6 {[%clk 0:00:25.2]} 24. Kg2 {[%clk 0:01:15.2]} 24... Re8 {[%clk 0:00:24.7]}
25. a5 {[%clk 0:01:12.8]} 25... e4 {[%clk 0:00:19.5]} 26. fxe4 {[%clk
0:01:11.3]} 26... h5 {[%clk 0:00:16.5]} 27. Bd4 {[%clk 0:01:01.7]} 27... Rf4
{[%clk 0:00:16.2]} 28. Bxg7 {[%clk 0:00:58.5]} 28... Kxg7 {[%clk 0:00:17.1]} 29.
f3 {[%clk 0:00:58.8]} 29... Rf6 {[%clk 0:00:16]} 30. Rb6 {[%clk 0:00:57.7]}
30... Re5 {[%clk 0:00:15.3]} 31. b4 {[%clk 0:00:54.5]} 31... Rg5+ {[%clk
0:00:14.1]} 32. Kf2 {[%clk 0:00:54.3]} 32... Rf4 {[%clk 0:00:13.5]} 33. Rxa6
{[%clk 0:00:51.8]} 33... h4 {[%clk 0:00:13.9]} 34. Ke3 {[%clk 0:00:51.3]} 34...
Rf6 {[%clk 0:00:10.3]} 35. Rxf6 {[%clk 0:00:50.6]} 35... Kxf6 {[%clk 0:00:11.2]}
36. Rd5 {[%clk 0:00:49.9]} 36... Rg3 {[%clk 0:00:10.8]} 37. a6 {[%clk
0:00:50.2]} 37... Rxh3 {[%clk 0:00:11.1]} 38. a7 {[%clk 0:00:50.6]} 38... Rh1
{[%clk 0:00:10.3]} 39. a8=Q {[%clk 0:00:50.5]} 39... h3 {[%clk 0:00:10.9]} 40.
Qh8+ {[%clk 0:00:49.8]} 40... Ke7 {[%clk 0:00:11]} 41. Qe5+ {[%clk 0:00:46.9]}
41... Kf8 {[%clk 0:00:10.8]} 42. Rd8# {[%clk 0:00:47.4]} 1-0

[Event "*** Titled Tuesday Blitz"]
[Site "Chess.com"]
[Date "2020.12.29"]
[Round "4"]
[White "norwaytoadog"]
[Black "ARMQUEEN"]
[Result "0-1"]
[WhiteElo "2196"]
[BlackElo "2415"]
[TimeControl "180+1"]
[EndTime "10:38:29 PST"]
[Termination "ARMQUEEN won on time"]

1. e4 {[%clk 0:03:00.3]} 1... c5 {[%clk 0:02:58.5]} 2. Nf3 {[%clk 0:03:00.3]}
2... Nc6 {[%clk 0:02:56.5]} 3. Bb5 {[%clk 0:03:00.3]} 3... g6 {[%clk 0:02:56.1]}
4. Bxc6 {[%clk 0:03:00.1]} 4... dxc6 {[%clk 0:02:57]} 5. d3 {[%clk 0:03:00.3]}
5... Bg7 {[%clk 0:02:57.1]} 6. h3 {[%clk 0:02:58.8]} 6... Nf6 {[%clk 0:02:57.4]}
7. Nc3 {[%clk 0:02:58.3]} 7... Nd7 {[%clk 0:02:57.1]} 8. Be3 {[%clk 0:02:56.3]}
8... e5 {[%clk 0:02:57.4]} 9. Qd2 {[%clk 0:02:56.1]} 9... h6 {[%clk 0:02:57.2]}
10. a3 {[%clk 0:02:55.1]} 10... b6 {[%clk 0:02:57.5]} 11. b4 {[%clk 0:02:53.6]}
11... cxb4 {[%clk 0:02:50.2]} 12. axb4 {[%clk 0:02:53.4]} 12... Nf8 {[%clk
0:02:46]} 13. O-O {[%clk 0:02:31.8]} 13... Ne6 {[%clk 0:02:43]} 14. b5 {[%clk
0:02:30.5]} 14... c5 {[%clk 0:02:42.2]} 15. Nd5 {[%clk 0:02:29.2]} 15... Bb7
{[%clk 0:02:30.4]} 16. c4 {[%clk 0:02:29]} 16... Qd7 {[%clk 0:02:24.6]} 17. Nh2
{[%clk 0:02:12]} 17... g5 {[%clk 0:02:24.1]} 18. Ng4 {[%clk 0:01:50.2]} 18...
Bxd5 {[%clk 0:02:17.6]} 19. exd5 {[%clk 0:01:32.3]} 19... Nf4 {[%clk 0:02:12.8]}
20. Bxf4 {[%clk 0:01:30.6]} 20... gxf4 {[%clk 0:02:12]} 21. Rfe1 {[%clk
0:01:02.5]} 21... Qf5 {[%clk 0:01:36]} 22. d4 {[%clk 0:00:35.4]} 22... cxd4
{[%clk 0:01:14.1]} 23. Qb4 {[%clk 0:00:31.7]} 23... h5 {[%clk 0:01:10.9]} 24.
Nxe5 {[%clk 0:00:18.3]} 24... Bxe5 {[%clk 0:01:07.1]} 25. Qd6 {[%clk 0:00:18.2]}
25... f6 {[%clk 0:00:57.8]} 26. Qc6+ {[%clk 0:00:18.2]} 26... Kf7 {[%clk
0:00:57.9]} 27. Qb7+ {[%clk 0:00:15.1]} 27... Kg6 {[%clk 0:00:58.1]} 28. Rxa7
{[%clk 0:00:12.9]} 28... Rxa7 {[%clk 0:00:57.6]} 29. Qxa7 {[%clk 0:00:13.3]}
29... d3 {[%clk 0:00:55.5]} 30. Qxb6 {[%clk 0:00:12.5]} 30... d2 {[%clk
0:00:55.7]} 31. Rd1 {[%clk 0:00:11.7]} 31... Qc2 {[%clk 0:00:54.3]} 32. Rxd2
{[%clk 0:00:08.3]} 32... Qxd2 {[%clk 0:00:53]} 33. Qb7 {[%clk 0:00:07.3]} 33...
Qe1+ {[%clk 0:00:43.9]} 34. Kh2 {[%clk 0:00:05.8]} 34... f3+ {[%clk 0:00:44.1]}
0-1

[Event "*** Titled Tuesday Blitz"]
[Site "Chess.com"]
[Date "2020.12.29"]
[Round "4"]
[White "IljaJoke"]
[Black "azikom"]
[Result "1-0"]
[WhiteElo "2461"]
[BlackElo "2607"]
[TimeControl "180+1"]
[EndTime "10:38:31 PST"]
[Termination "IljaJoke won by resignation"]

1. d4 {[%clk 0:03:00.9]} 1... d5 {[%clk 0:02:59.6]} 2. c4 {[%clk 0:03:00.9]}
2... c6 {[%clk 0:03:00.2]} 3. cxd5 {[%clk 0:02:57]} 3... cxd5 {[%clk 0:03:00]}
4. Bf4 {[%clk 0:02:57.6]} 4... Nf6 {[%clk 0:03:00.7]} 5. Nc3 {[%clk 0:02:56.7]}
5... Nc6 {[%clk 0:03:00.4]} 6. e3 {[%clk 0:02:56.8]} 6... a6 {[%clk 0:02:59.6]}
7. Be2 {[%clk 0:02:48.6]} 7... Bf5 {[%clk 0:02:58.7]} 8. g4 {[%clk 0:02:48.3]}
8... Bg6 {[%clk 0:02:58.1]} 9. Qb3 {[%clk 0:02:42.4]} 9... Ra7 {[%clk
0:02:56.6]} 10. g5 {[%clk 0:02:38.1]} 10... Nh5 {[%clk 0:02:51.1]} 11. Nxd5
{[%clk 0:01:58.1]} 11... Nxf4 {[%clk 0:02:47.2]} 12. Nxf4 {[%clk 0:01:57.4]}
12... e5 {[%clk 0:02:47.4]} 13. dxe5 {[%clk 0:01:46.9]} 13... Bb4+ {[%clk
0:02:44.3]} 14. Kf1 {[%clk 0:01:46.2]} 14... Qxg5 {[%clk 0:02:40.3]} 15. Nf3
{[%clk 0:01:35.9]} 15... Qf5 {[%clk 0:02:34.7]} 16. e6 {[%clk 0:01:23.3]} 16...
O-O {[%clk 0:02:29.5]} 17. Nxg6 {[%clk 0:01:11.8]} 17... hxg6 {[%clk 0:02:27.1]}
18. exf7+ {[%clk 0:01:00.6]} 18... Rxf7 {[%clk 0:02:23.8]} 19. h4 {[%clk
0:00:52.2]} 19... Kh8 {[%clk 0:02:18.9]} 20. Rd1 {[%clk 0:00:38.2]} 20... Bf8
{[%clk 0:02:08.7]} 21. h5 {[%clk 0:00:37.2]} 21... g5 {[%clk 0:02:07.2]} 22. Rd5
{[%clk 0:00:36.2]} 22... Qf6 {[%clk 0:01:59.4]} 23. Rxg5 {[%clk 0:00:36.4]}
23... b5 {[%clk 0:01:50]} 24. Rg6 {[%clk 0:00:34.9]} 24... Qf5 {[%clk
0:00:59.2]} 25. Rxc6 {[%clk 0:00:34.4]} 25... Rac7 {[%clk 0:00:58.9]} 26. Rxc7
{[%clk 0:00:30.2]} 26... Rxc7 {[%clk 0:00:58.5]} 27. Rh4 {[%clk 0:00:26.3]}
27... Rc1+ {[%clk 0:00:56.4]} 28. Kg2 {[%clk 0:00:25.5]} 28... Be7 {[%clk
0:00:53.5]} 29. Rh3 {[%clk 0:00:17.7]} 29... Qg4+ {[%clk 0:00:51.7]} 30. Rg3
{[%clk 0:00:17.7]} 30... Qf5 {[%clk 0:00:45.4]} 31. Qd3 {[%clk 0:00:17.3]} 31...
Qf7 {[%clk 0:00:41.7]} 32. Ng5 {[%clk 0:00:16.4]} 32... Bxg5 {[%clk 0:00:40.5]}
33. Rxg5 {[%clk 0:00:17.3]} 33... Qb7+ {[%clk 0:00:37.1]} 34. Bf3 {[%clk
0:00:16.5]} 1-0

[Event "*** Titled Tuesday Blitz"]
[Site "Chess.com"]
[Date "2020.12.29"]
[Round "4"]
[White "andrewtnb"]
[Black "Bodnar_Mykola"]
[Result "0-1"]
[WhiteElo "2350"]
[BlackElo "2549"]
[TimeControl "180+1"]
[EndTime "10:38:33 PST"]
[Termination "Bodnar_Mykola won on time"]

1. d4 {[%clk 0:02:53.6]} 1... Nf6 {[%clk 0:02:59.2]} 2. c4 {[%clk 0:02:52.5]}
2... g6 {[%clk 0:02:59.6]} 3. Nc3 {[%clk 0:02:52.1]} 3... d5 {[%clk 0:02:59.7]}
4. cxd5 {[%clk 0:02:51.4]} 4... Nxd5 {[%clk 0:03:00.6]} 5. e4 {[%clk 0:02:51.2]}
5... Nxc3 {[%clk 0:03:01]} 6. bxc3 {[%clk 0:02:51.8]} 6... Bg7 {[%clk
0:03:01.5]} 7. Nf3 {[%clk 0:02:52.2]} 7... c5 {[%clk 0:03:01.3]} 8. Be2 {[%clk
0:02:52.3]} 8... O-O {[%clk 0:03:01.5]} 9. O-O {[%clk 0:02:51.3]} 9... Nc6
{[%clk 0:02:55]} 10. Be3 {[%clk 0:02:45.6]} 10... b6 {[%clk 0:02:52.5]} 11. d5
{[%clk 0:02:42.8]} 11... Ne5 {[%clk 0:02:49.6]} 12. Nxe5 {[%clk 0:02:43.1]}
12... Bxe5 {[%clk 0:02:50.5]} 13. Qd2 {[%clk 0:02:36.6]} 13... Bb7 {[%clk
0:02:44]} 14. f4 {[%clk 0:02:31.7]} 14... Bg7 {[%clk 0:02:43.9]} 15. Rab1 {[%clk
0:02:30.7]} 15... Qd7 {[%clk 0:02:39.4]} 16. c4 {[%clk 0:02:26.4]} 16... e6
{[%clk 0:02:32.1]} 17. f5 {[%clk 0:02:11.7]} 17... exf5 {[%clk 0:02:20]} 18.
exf5 {[%clk 0:02:10.1]} 18... Rfe8 {[%clk 0:02:20.5]} 19. f6 {[%clk 0:02:04.6]}
19... Bf8 {[%clk 0:02:19.2]} 20. Bh6 {[%clk 0:01:58.5]} 20... Bd6 {[%clk
0:02:18.7]} 21. h3 {[%clk 0:01:49.8]} 21... Ba6 {[%clk 0:02:09.1]} 22. Bd3
{[%clk 0:01:25.5]} 22... Be5 {[%clk 0:02:06.8]} 23. Kh1 {[%clk 0:01:21.2]} 23...
Qd6 {[%clk 0:02:00.4]} 24. Bg7 {[%clk 0:01:17.7]} 24... Bd4 {[%clk 0:01:40.7]}
25. Qh6 {[%clk 0:01:11.1]} 25... Re3 {[%clk 0:01:03.7]} 26. Rbd1 {[%clk
0:00:49.8]} 26... Rxd3 {[%clk 0:00:44.9]} 27. Rxd3 {[%clk 0:00:50.7]} 27... Bxc4
{[%clk 0:00:45.4]} 28. Rxd4 {[%clk 0:00:48.7]} 28... cxd4 {[%clk 0:00:45]} 29.
Re1 {[%clk 0:00:46.1]} 29... Bxd5 {[%clk 0:00:42]} 30. Qd2 {[%clk 0:00:29.3]}
30... Qg3 {[%clk 0:00:37.8]} 31. Kg1 {[%clk 0:00:27.6]} 31... Bxg2 {[%clk
0:00:35.9]} 32. Qxg2 {[%clk 0:00:17.7]} 32... Qxe1+ {[%clk 0:00:35.7]} 33. Kh2
{[%clk 0:00:18.6]} 33... Re8 {[%clk 0:00:32.3]} 0-1

[Event "*** Titled Tuesday Blitz"]
[Site "Chess.com"]
[Date "2020.12.29"]
[Round "4"]
[White "FMalexhdez"]
[Black "MoreChessJulia"]
[Result "1-0"]
[WhiteElo "2276"]
[BlackElo "2083"]
[TimeControl "180+1"]
[EndTime "10:38:35 PST"]
[Termination "FMalexhdez won by checkmate"]

1. e4 {[%clk 0:02:34.5]} 1... c5 {[%clk 0:02:58.7]} 2. Nf3 {[%clk 0:02:34.3]}
2... d6 {[%clk 0:02:58.7]} 3. d4 {[%clk 0:02:35.1]} 3... cxd4 {[%clk 0:02:58.8]}
4. Nxd4 {[%clk 0:02:36]} 4... Nf6 {[%clk 0:02:59.3]} 5. Nc3 {[%clk 0:02:36.3]}
5... a6 {[%clk 0:02:59.4]} 6. h3 {[%clk 0:02:35.4]} 6... e6 {[%clk 0:02:53.2]}
7. g4 {[%clk 0:02:35.3]} 7... b5 {[%clk 0:02:51.2]} 8. Bg2 {[%clk 0:02:35.2]}
8... Bb7 {[%clk 0:02:49.7]} 9. g5 {[%clk 0:02:30.6]} 9... Nfd7 {[%clk
0:02:48.9]} 10. O-O {[%clk 0:02:27.5]} 10... Qc7 {[%clk 0:02:47.5]} 11. a3
{[%clk 0:02:26.2]} 11... g6 {[%clk 0:02:42.4]} 12. h4 {[%clk 0:02:16.4]} 12...
h6 {[%clk 0:02:38.7]} 13. Nde2 {[%clk 0:02:10.7]} 13... Be7 {[%clk 0:02:32.8]}
14. Be3 {[%clk 0:01:58.7]} 14... Nc6 {[%clk 0:02:30.6]} 15. Qd2 {[%clk
0:01:43.8]} 15... Nce5 {[%clk 0:02:29.7]} 16. b3 {[%clk 0:01:41]} 16... Ng4
{[%clk 0:02:23.9]} 17. Bf4 {[%clk 0:01:40.5]} 17... e5 {[%clk 0:02:23.3]} 18.
Bg3 {[%clk 0:01:39.1]} 18... hxg5 {[%clk 0:02:17.7]} 19. hxg5 {[%clk 0:01:38.2]}
19... Qc5 {[%clk 0:02:00.3]} 20. Bf3 {[%clk 0:01:29.5]} 20... f5 {[%clk
0:01:56.9]} 21. gxf6 {[%clk 0:01:26.2]} 21... Ndxf6 {[%clk 0:01:53.8]} 22. Rad1
{[%clk 0:01:14.2]} 22... Nh6 {[%clk 0:01:34.6]} 23. Nd5 {[%clk 0:01:11.9]} 23...
Bxd5 {[%clk 0:01:31.7]} 24. exd5 {[%clk 0:01:09.8]} 24... Nf5 {[%clk 0:01:31]}
25. c4 {[%clk 0:00:38.9]} 25... e4 {[%clk 0:01:19.8]} 26. Bg2 {[%clk 0:00:35.2]}
26... e3 {[%clk 0:01:13.5]} 27. Qd3 {[%clk 0:00:27.7]} 27... O-O-O {[%clk
0:00:59.2]} 28. Nd4 {[%clk 0:00:23.8]} 28... Nxg3 {[%clk 0:00:48.3]} 29. fxg3
{[%clk 0:00:22.2]} 29... Ng4 {[%clk 0:00:47.4]} 30. b4 {[%clk 0:00:18.2]} 30...
Qa7 {[%clk 0:00:44.1]} 31. c5 {[%clk 0:00:15.4]} 31... dxc5 {[%clk 0:00:42.4]}
32. Nc6 {[%clk 0:00:14.6]} 32... Qc7 {[%clk 0:00:39.5]} 33. Rf7 {[%clk
0:00:08.7]} 33... Qxg3 {[%clk 0:00:32.4]} 34. Nxe7+ {[%clk 0:00:08.5]} 34... Kb8
{[%clk 0:00:31.2]} 35. Nc6+ {[%clk 0:00:08]} 35... Ka8 {[%clk 0:00:28.7]} 36.
Ra7# {[%clk 0:00:06.3]} 1-0